Cogmind - Beta 15 @@@ ROGUE MODE // 2025.08.12 @ 21:47:03 Player: TapeIsSticky Result: Self-destructed Performance ------------- Evolutions (1) 500 Regions Visited (6) 1200 Robots Destroyed (83) 415 Value Destroyed (1585) 1585 Prototype IDs (28) 560 Alien Tech Used (0) 0 Bonus (244) 244 TOTAL SCORE: 4504 Bonus ------- Aligned with FarCom 300 Friendly Fire -56 Cogmind --------- Core Integrity 148/400 Matter 215/300 Energy 160/160 System Corruption 4% Temperature Warm (129) Movement Treading (152) Location -8/Mines Parts ------- > --- POWER (1) -------- Light Nuclear Core > --- PROPULSION (3) --- Improved Treads Advanced Treads Advanced Myomer Leg > --- UTILITY (3) ------ Medium Armor Plating AS-neutralizer No. 17b > --- WEAPON (2) ------- Plasma Cannon Improved Light Cannon > --- INVENTORY (5) ---- Light Treads Missile Launcher Peak State ------------ > --- POWER ------------ Heavy Ion Engine > --- PROPULSION ------- Advanced Treads Advanced Treads Advanced Treads > --- UTILITY ---------- Medium Armor Plating Hardened Light Armor Plating Hardened Light Armor Plating > --- WEAPON ----------- AWS/Thermal > --- INVENTORY -------- Light Nuclear Core Light Treads Improved Treads Advanced Treads Missile Launcher [Rating: 35] Favorites ----------- Power Heavy Ion Engine Engine Heavy Ion Engine Power Core Light Nuclear Core Propulsion Light Treads Treads Light Treads Leg Advanced Myomer Leg Utility Seismic Detector Device Seismic Detector Storage High-capacity Storage Unit Processor Visual Processing Unit Protection Hardened Light Armor Plating Weapon Light Cannon Energy Gun AWS/Thermal Energy Cannon Plasma Cannon Ballistic Gun Assault Rifle Ballistic Cannon Light Cannon Launcher Grenade Launcher Build | -11 -10 -10 -9 -9 -9 -8 ------- Run | Yrd Mat Min Mat Min Exi Min Slots Evolved 2 | . . . 2 . . . Power . | . . . . . . . Propulsion 1 | . . . 1 . . . Utility 1 | . . . 1 . . . Weapon . | . . . . . . . Parts Attached 55 | 8 6 5 24 2 9 1 Power 4 | 1 1 . 1 . 1 . Engine 3 | 1 1 . 1 . . . Core 1 | . . . . . 1 . Reactor . | . . . . . . . Propulsion 14 | 2 . 1 9 . 2 . Treads 13 | 2 . 1 9 . 1 . Leg 1 | . . . . . 1 . Wheel . | . . . . . . . Hover . | . . . . . . . Flight . | . . . . . . . Utility 14 | 2 1 . 8 . 2 1 Device 5 | 1 . . 3 . 1 . Storage 3 | 1 1 . 1 . . . Processor 1 | . . . 1 . . . Hackware . | . . . . . . . Protection 5 | . . . 3 . 1 1 Artifact . | . . . . . . . Weapon 23 | 3 4 4 6 2 4 . Energy Gun 1 | . . . . . 1 . Energy Cannon 1 | . . . . . 1 . Ballistic Gun 9 | 3 2 . 3 . 1 . Ballistic Cannon 8 | . 1 3 3 1 . . Launcher 4 | . 1 1 . 1 1 . Special Weapon . | . . . . . . . Impact Weapon . | . . . . . . . Slashing Weapon . | . . . . . . . Piercing Weapon . | . . . . . . . Special Melee Weapon . | . . . . . . . Unidentified Prototypes 5 | . . . 3 . 2 . Parts Lost 12 | . . . 4 . 8 . Power 1 | . . . . . 1 . Propulsion 3 | . . . 1 . 2 . Utility 4 | . . . 1 . 3 . Weapon 4 | . . . 2 . 2 . Highest Loss Streak 5 | . . . 2 . 5 . To Critical Strikes 5 | . . . . . 5 . Average Backups 13 | 2 10 14 17 18 8 2 Power 1 | . 1 1 1 2 1 . Propulsion 2 | . 2 2 2 5 1 1 Utility 3 | . 2 3 5 5 2 . Weapon 5 | . 4 7 8 6 2 1 Tool/Special . | . . . . . . . Unused Backups 17 | . 3 . 3 1 9 1 Power 4 | . . . . . 4 . Propulsion 5 | . 2 . 1 . 1 1 Utility 5 | . 1 . . 1 3 . Weapon 3 | . . . 2 . 1 . Tool/Special . | . . . . . . . Average Slot Usage (%) 96 | . 99 99 99 100 79 86 Engine 11 | . 14 14 11 11 10 . Treads 30 | . 27 28 32 33 32 22 Device 12 | . 14 14 16 11 4 11 Storage 11 | . 14 14 11 11 4 . Protection 6 | . . . 4 11 21 9 Ballistic Gun 4 | . 15 . 2 . 1 . Ballistic Cannon 16 | . 11 26 19 21 . 11 Peak Build Rating 35 | 7 8 14 26 25 35 29 Average Rating 17 | 5 7 12 20 24 24 28 On Entrance 15 | . 7 8 14 24 25 27 Naked Turns . | . . . . . . . Heaviest Build 66 | 12 31 38 66 62 54 29 Greatest Support 67 | 40 40 40 67 66 67 30 Greatest Overweight (x) 1 | . . . 1 . . . Average Overweight (x) . | . . . . . . . Largest Inventory Capacity 20 | 8 15 15 20 20 20 5 Average Capacity 15 | 7 13 15 19 20 11 5 Most Carried 20 | 4 15 15 20 20 20 2 Average Carried 14 | 2 10 14 18 19 8 2 Final Capacity 20 | 8 15 15 20 20 5 5 Final Carried 20 | 3 15 15 20 20 2 2 Class Distribution -------------------- 98% | Mutant Dominant Class ---------------- Mutant | -10/Materials Mutant | -10/Mines Mutant | -9/Materials Mutant | -9/Mines Mutant | -9/Exiles Mutant | -8/Mines Resources | -11 -10 -10 -9 -9 -9 -8 ----------- Run | Yrd Mat Min Mat Min Exi Min Matter Collected 3732 | 385 819 766 1139 141 411 71 Remotely . | . . . . . . . Salvage Created 2224 | 140 713 152 1073 25 121 . Parts 140 | 23 39 9 63 4 2 . Haulers Intercepted 5 | . 2 . 3 . . . Recyclers Shooed 5 | . 4 . 1 . . . Parts Field Recycled . | . . . . . . . Retrieved Matter . | . . . . . . . Parts Self-Destructed . | . . . . . . . Prevented . | . . . . . . . Kills | -11 -10 -10 -9 -9 -9 -8 ------- Run | Yrd Mat Min Mat Min Exi Min Combat Hostiles Destroyed 61 | . 11 18 23 4 5 . Guns 6 | . 3 2 1 . . . Cannons 37 | . 4 10 22 . 1 . AOE 18 | . 4 6 . 4 4 . Classes Destroyed 13 | 2 6 1 4 . . . Worker 10 | 2 5 . 3 . . . Builder 2 | . . . 2 . . . Tunneler 5 | 5 . . . . . . Hauler 5 | . 2 . 3 . . . Recycler 6 | . 3 1 2 . . . Operator 3 | . 1 . 2 . . . Watcher 8 | . 3 . 5 . . . Swarmer 15 | . 3 5 3 4 . . Grunt 18 | . 8 . 10 . . . Brawler 1 | . . . 1 . . . Duelist 1 | . . . 1 . . . Sentry 8 | . . . 8 . . . Assembled 17 | . . 13 . . 4 . Best Kill Streak 5 | 3 5 5 4 4 4 . Combat Bots Only 5 | . 5 5 4 4 4 . Max Kills in Single Turn 3 | 1 2 3 2 2 1 . Gunslinging . | . . . . . . . Exploded 3 | . 2 3 . 2 1 . Melee . | . . . . . . . Uniques/NPCs Destroyed 1 | . . . . . 1 . 8R-AWN (-9/Exiles) Combat | -11 -10 -10 -9 -9 -9 -8 -------- Run | Yrd Mat Min Mat Min Exi Min Hostile Shots Fired 306 | . 37 38 114 7 103 7 Missed 75 | . 8 12 27 2 24 2 Hits 231 | . 29 26 87 5 79 5 Melee 4 | . . 2 1 . . 1 Projectile 227 | . 29 24 86 5 79 4 Critical Strikes 39 | . . . 6 . 33 . Damage Taken 3249 | . 349 345 966 94 1415 80 Core 385 | . 67 66 127 . 125 . Absorbed by Shields 160 | . . . 160 . . . Regen/Repaired (Parts) 292 | . 54 . 238 . . . Core Remaining (%) 73 | 100 . 46 . . . . Volleys Fired 295 | 27 65 42 93 15 50 3 Largest 2 | 2 2 2 2 2 2 2 Hottest 113 | 40 50 78 78 66 113 113 Shots Fired 563 | 54 127 72 187 29 88 6 Gun 208 | 54 67 2 17 . 68 . Cannon 329 | . 55 58 170 27 13 6 Launcher 26 | . 5 12 . 2 7 . Special . | . . . . . . . Kinetic 523 | 54 122 60 187 27 69 4 Thermal 14 | . . . . . 12 2 Explosive 26 | . 5 12 . 2 7 . Electromagnetic . | . . . . . . . Robot Hit Streak 13 | 6 7 3 8 1 13 3 Robot Miss Streak 6 | 3 6 6 5 1 2 2 Penetration Max 2 | . . 1 2 . . . Secondary Targets . | . . . . . . . Shots Hit Robots 301 | 29 71 25 110 1 62 3 Core Hits 144 | 9 38 26 47 5 19 . Critical Kills 9 | . . 4 5 . . . Critical Parts Destroyed 15 | 1 1 6 7 . . . Critical Strikes 31 | 1 2 10 17 . 1 . Destroy 27 | 1 1 10 14 . 1 . Blast 4 | . 1 . 3 . . . Melee Attacks . | . . . . . . . Impact . | . . . . . . . Slashing . | . . . . . . . Piercing . | . . . . . . . Sneak Attacks . | . . . . . . . Combat Hostiles . | . . . . . . . Follow-up Attacks . | . . . . . . . Damage Inflicted 6200 | 289 1345 848 2234 219 1210 55 Guns 1714 | 287 538 29 147 . 713 . Cannons 3162 | . 521 478 1954 . 154 55 Explosions 1092 | . 248 318 . 183 343 . Melee . | . . . . . . . Ramming 232 | 2 38 23 133 36 . . Kinetic 4696 | 287 1059 507 2101 . 713 29 Thermal 180 | . . . . . 154 26 Explosive 1092 | . 248 318 . 183 343 . Electromagnetic . | . . . . . . . Impact . | . . . . . . . Slashing . | . . . . . . . Piercing . | . . . . . . . Highest Corruption 4 | . 2 2 4 4 4 4 Average Corruption 3 | . 2 2 4 4 4 4 Corruption Purged . | . . . . . . . Corruption Blocked . | . . . . . . . Effects 141 | . 15 29 27 31 31 8 Message Errors 28 | . . 8 8 8 3 1 Matter Fused 31 | . 6 5 6 6 7 1 Heat Flow Errors 14 | . 3 4 . 5 2 . Energy Discharges 17 | . . 4 3 3 6 1 Parts Rejected 3 | . . 1 1 . 1 . Parts Fused 3 | . 1 1 . . 1 . Data Loss (minor) 20 | . 1 2 4 5 6 2 Data Loss (major) 11 | . 1 3 2 3 2 . Misfires 6 | . 2 . 2 1 . 1 Alerts 3 | . 1 . 1 . . 1 Weapon Failures 5 | . . 1 . . 3 1 Overload Shots . | . . . . . . . Overflow Damage 90 | . . 2 72 16 . . Projectiles 44 | . . . 44 . . . Explosions 18 | . . 2 . 16 . . Melee 28 | . . . 28 . . . Knockbacks 33 | . 3 8 21 1 . . Impact 3 | . . 1 1 1 . . Kinetic 27 | . 3 6 18 . . . Secondary 3 | . . 1 2 . . . Self-Inflicted Damage 144 | . . 21 . 55 68 . Shots 5 | . . 2 . 1 2 . Rammed 37 | 2 7 4 17 7 . . Targets Rammed 43 | 2 8 5 21 7 . . Kicked . | . . . . . . . Crushed 6 | . 1 1 4 . . . Highest Temperature 344 | . 258 262 270 280 344 129 Average Temperature 81 | . 66 76 66 111 94 74 Received Heat Transfer 707 | . 171 40 420 . 40 36 Effects 2 | . . . 1 . 1 . Shutdowns 1 | . . . . . 1 . Energy Bleed 1 | . . . 1 . . . Siege Activations . | . . . . . . . Martial Activations . | . . . . . . . Shielding Activations . | . . . . . . . Robots Disrupted . | . . . . . . . Combat Hostiles . | . . . . . . . Robots Corrupted 2 | . . . 2 . . . Combat Hostiles . | . . . . . . . Parts Fried 4 | . . . 4 . . . Impact Corruptions 2 | . . . 2 . . . Robots Melted . | . . . . . . . Combat Hostiles . | . . . . . . . Parts Melted . | . . . . . . . Heat Transferred 134 | . . . . . 84 50 Parts Sabotaged . | . . . . . . . Parts Stolen . | . . . . . . . Parts Stripped . | . . . . . . . Power Chain Reactions . | . . . . . . . Alert | -11 -10 -10 -9 -9 -9 -8 ------- Run | Yrd Mat Min Mat Min Exi Min Maximum Alert Level 1 | . . . 1 . . . Low Security (%) 90 | 100 100 100 64 100 . 100 Level 1 9 | . . . 35 . . . Level 2 . | . . . . . . . Level 3 . | . . . . . . . Level 4 . | . . . . . . . Level 5 . | . . . . . . . High Security . | . . . . . . . Max Security . | . . . . . . . Peak Influence 350 | 10 131 112 350 161 . 1 Initial 126 | . . 12 14 126 . . Average 55 | 1 28 22 144 26 . . Influence Increases 1597 | 35 396 211 837 117 . 1 Destroy 0b10 Robot/C 860 | . 220 100 460 80 . . Destroy 0b10 Robot/NC 195 | 35 70 5 85 . . . Destroy Leader 236 | . 50 20 156 10 . . Successful Hack 37 | . 21 . 16 . . . Disable Machine 75 | . 15 30 30 . . . Destroy Structure 134 | . 20 56 30 27 . 1 Partial Spotted 15 | . . . 15 . . . Lose Combat Pursuer 45 | . . . 45 . . . Influence Decreases 1597 | 35 364 206 550 441 . 1 Entered New Map 241 | . . 20 23 198 . . Time Decay 1316 | 35 364 186 487 243 . 1 Lost Part 40 | . . . 40 . . . Squads Dispatched 4 | . 1 . 1 2 . . Investigation 2 | . 1 . . 1 . . Extermination . | . . . . . . . Reinforcement 1 | . . . 1 . . . Assault 1 | . . . . 1 . . Garrison . | . . . . . . . Intercept . | . . . . . . . Searches Triggered . | . . . . . . . Construction Impeded . | . . . . . . . Haulers Reinforced . | . . . . . . . Active Scanning Responses . | . . . . . . . Cargo Convoy Interrupts . | . . . . . . . Stealth | -11 -10 -10 -9 -9 -9 -8 --------- Run | Yrd Mat Min Mat Min Exi Min Distress Signals 5 | . 1 . 4 . . . Communications Jammed . | . . . . . . . Distress Signals . | . . . . . . . Times Spotted 96 | . 19 23 38 5 8 3 Peak Tracking Total 9 | . 7 6 6 4 9 3 Tactical Retreats 6 | . . 3 3 . . . Traps | -11 -10 -10 -9 -9 -9 -8 ------- Run | Yrd Mat Min Mat Min Exi Min Traps Triggered 4 | . 4 . . . . . Indirectly . | . . . . . . . Trap Hack Attempts . | . . . . . . . Triggered . | . . . . . . . Disarmed . | . . . . . . . Reprogrammed . | . . . . . . . Reused . | . . . . . . . Traps Extracted . | . . . . . . . Installed . | . . . . . . . Triggered . | . . . . . . . Machines | -11 -10 -10 -9 -9 -9 -8 ---------- Run | Yrd Mat Min Mat Min Exi Min Machines Disabled 9 | . 2 2 2 . 3 . Max in Single Turn 1 | . 1 1 1 . 1 . Machines Repaired . | . . . . . . . Machines Dismantled . | . . . . . . . Machines Sabotaged . | . . . . . . . Overloaded Fab Kills . | . . . . . . . Hacking | -11 -10 -10 -9 -9 -9 -8 --------- Run | Yrd Mat Min Mat Min Exi Min Machines Accessed 22 | . 9 1 9 1 2 . Terminals 14 | . 7 . 7 . . . Fabricators . | . . . . . . . Repair Stations 3 | . 1 . 2 . . . Recycling Units 1 | . 1 . . . . . Scanalyzers . | . . . . . . . Garrison Access . | . . . . . . . Total Hacks 42 | . 23 1 15 1 2 . Successful 25 | . 11 1 10 1 2 . Failed 16 | . 11 . 5 . . . Catastrophic . | . . . . . . . Database Lockouts 1 | . 1 . . . . . Manual 28 | . 17 . 10 . 1 . Terminals 26 | . 17 . 9 . . . Fabricators . | . . . . . . . Repair Stations 10 | . 4 . 6 . . . Recycling Units 2 | . 2 . . . . . Scanalyzers . | . . . . . . . Garrison Access . | . . . . . . . Terminal Hacks 6 | . 1 1 1 1 2 . Record 1 | . . . . . 1 . Robot Analysis 2 | . 1 . 1 . . . Open Door 2 | . . 1 . 1 . . Proto ID Catalog 1 | . . . . . 1 . Fabricator Hacks . | . . . . . . . Repair Station Hacks 6 | . 2 . 4 . . . Scan Component 3 | . 1 . 2 . . . Repair 3 | . 1 . 2 . . . Recycling Unit Hacks 2 | . 2 . . . . . Report Inventory 1 | . 1 . . . . . Retrieve Matter 1 | . 1 . . . . . Scanalyzer . | . . . . . . . Garrison Access Hacks . | . . . . . . . Unauthorized Hacks 11 | . 6 . 5 . . . Terminals 11 | . 6 . 5 . . . Botnet 1 | . 1 . . . . . Skim 10 | . 5 . 5 . . . Fabricators . | . . . . . . . Repair Stations . | . . . . . . . Recycling Units . | . . . . . . . Scanalyzers . | . . . . . . . Garrison Access . | . . . . . . . Data Cores Recovered 2 | . 1 . 1 . . . Used . | . . . . . . . Hacking Detections 11 | . 5 . 6 . . . Full Trace Events . | . . . . . . . Feedback Events . | . . . . . . . Feedback Blocked . | . . . . . . . Robot Schematics Acquired . | . . . . . . . Robots Built . | . . . . . . . Authchips . | . . . . . . . Time . | . . . . . . . Total Robot Build Rating . | . . . . . . . Part Schematics Acquired . | . . . . . . . Parts Built . | . . . . . . . Authchips . | . . . . . . . Time . | . . . . . . . Total Part Build Rating . | . . . . . . . Parts Repaired 3 | . 1 . 2 . . . Time 84 | . 26 . 58 . . . Parts Recycled . | . . . . . . . Recycled Matter . | . . . . . . . Retrieved Matter . | . . . . . . . Retrieved Components . | . . . . . . . Parts Scanalyzed . | . . . . . . . Part Schematics Acquired . | . . . . . . . Parts Damaged . | . . . . . . . Bothacking | -11 -10 -10 -9 -9 -9 -8 ------------ Run | Yrd Mat Min Mat Min Exi Min Used RIF Installer . | . . . . . . . Robots Hacked . | . . . . . . . Non-combat . | . . . . . . . Combat . | . . . . . . . Robot Hacks Applied . | . . . . . . . Relay Couplers Released . | . . . . . . . Fabnet Peak Effective % . | . . . . . . . Robots Rewired . | . . . . . . . Allies Hacked . | . . . . . . . Hacks Repelled . | . . . . . . . Allies | -11 -10 -10 -9 -9 -9 -8 -------- Run | Yrd Mat Min Mat Min Exi Min Total Allies 1 | . . . . 1 . . Largest Group 1 | . . . . 1 1 . Highest-Rated Group 31 | . . . . 31 31 . Highest-Rated Ally 31 | . . . . 31 31 . Total Orders . | . . . . . . . Ally Attacks 4 | . . . . . 4 . Total Damage 22 | . . . . . 22 . Kills 1 | . . . . . 1 . Allies Corrupted . | . . . . . . . Allies Melted . | . . . . . . . Intel | -11 -10 -10 -9 -9 -9 -8 ------- Run | Yrd Mat Min Mat Min Exi Min Active Infowar (turns) 9563 | 156 2320 2375 2452 1632 628 . Optics 199 | . . . 199 . . . Seismic 9563 | 156 2320 2375 2452 1632 628 . Robot Analysis Total 2 | . 1 . 1 . . . Derelict Logs Recovered 3 | . . 2 . 1 . . Drone Launches . | . . . . . . . Drone Recoveries . | . . . . . . . Exploration | -11 -10 -10 -9 -9 -9 -8 ------------- Run | Yrd Mat Min Mat Min Exi Min Turns Passed 10990 | 298 2320 2375 2457 1632 1662 246 Spaces Moved 4965 | 129 964 896 1097 679 1004 196 Core 1 | 1 . . . . . . Treads 4735 | 128 964 896 1097 679 971 . Legs 229 | . . . . . 33 196 Wheels . | . . . . . . . Hover . | . . . . . . . Flight . | . . . . . . . Fastest Speed 50 | 50 160 160 145 145 120 120 Average Speed 157 | 159 160 160 179 145 144 120 Slowest Speed 240 | 160 160 160 240 145 150 120 Overloaded Moves . | . . . . . . . Propulsion Burnouts . | . . . . . . . Robots Hopped . | . . . . . . . Potential Cave-ins . | . . . . . . . Cave-ins Triggered . | . . . . . . . Exploration Rate (%) 73 | 7 97 97 92 97 64 63 Regions Visited 6 Branch Regions 4 Pre-discovered Areas 7 | . 1 . 5 . 1 . Known Exits Taken 4 | . 1 1 1 1 . . Unknown Exits Taken 2 | 1 . . . . 1 . Scrap Searched 2 | . . 1 . 1 . . Spaces Dug 15 | . 8 3 . 4 . . Terrain Destroyed 216 | . 20 95 23 34 43 1 Melee . | . . . . . . . Projectile 57 | . . 27 23 5 1 1 AOE 159 | . 20 68 . 29 42 . Terrain Rammed . | . . . . . . . Walls Destroyed . | . . . . . . . Machines Disabled . | . . . . . . . Actions | -11 -10 -10 -9 -9 -9 -8 --------- Run | Yrd Mat Min Mat Min Exi Min Total 7568 | 169 1610 1762 1392 1296 1139 200 Wait 2066 | . 537 801 117 586 25 . Move 4959 | 128 963 895 1096 678 1003 196 Hop . | . . . . . . . Pick Up 57 | 4 16 4 18 4 11 . Fast Attach 24 | 6 3 . 5 . 9 1 Attach 16 | 1 . 1 7 . 7 . Detach 6 | . . . 1 . 5 . Swap 39 | 1 10 9 16 2 1 . Drop 63 | . 8 5 18 4 28 . Fire 295 | 27 65 42 93 15 50 3 Melee . | . . . . . . . Ram . | . . . . . . . Kick . | . . . . . . . Crush 43 | 2 8 5 21 7 . . Escape Stasis . | . . . . . . . Rewire . | . . . . . . . Trap . | . . . . . . . Miscellaneous . | . . . . . . . Route ------- -11/Scrapyard -10/Materials (discovered 6 exits: *Mat x3 / *Min x2 / Sub) -10/Mines (discovered 2 exits: *Mat x2) -9/Materials (discovered 5 exits: *Mat x3 / *Min / *Sto) -9/Mines (discovered 4 exits: *Mat x2 / *Exi / [*Zio]) -9/Exiles (discovered 2 exits: [*Min x2]) -8/Mines History --------- Turn | Location | Event 11 | -11/Scrapyard | Discovered new exit (range 14) 299 | -11/Scrapyard | Entered Materials 300 | -10/Materials | Build established: Mutant 536 | -10/Materials | Central database locked down 768 | -10/Materials | Discovered new exit (range 4) 907 | -10/Materials | Repaired Lgt. Treads 1124 | -10/Materials | Discovered new exit (range 16) 1223 | -10/Materials | Discovered new exit (range 11) 2105 | -10/Materials | Learned location of 1 exit from Storage 2150 | -10/Materials | Identified exit to Subcaves 2150 | -10/Materials | Identified exit to Mines 2150 | -10/Materials | Identified exit to Materials 2183 | -10/Materials | Loaded intel: 1 repair station location 2208 | -10/Materials | Learned location of 3 exits from Materials 2225 | -10/Materials | Loaded intel: 9 trap records 2232 | -10/Materials | Learned location of Mines (-9) 2251 | -10/Materials | Learned location of 2 exits from Subcaves 2307 | -10/Materials | Learned Storage stockpile data 2619 | -10/Materials | Entered Mines 2704 | -10/Mines | Learned 4 Materials zone layouts 2721 | -10/Mines | A weapon hastily lodged in a ceiling crevice suddenly fell to the ground 2929 | -10/Mines | Discovered exit to Materials (range 14) 2933 | -10/Mines | Assembled infested the area 4167 | -10/Mines | Core integrity fell below 50% 4255 | -10/Mines | Discovered exit to Materials (range 10) 4275 | -10/Mines | Found the Drone Emporium 4286 | -10/Mines | Found Prototype Device 4572 | -10/Mines | Learned Materials emergency access door positions 4994 | -10/Mines | Entered Materials 4994 | -9/Materials | Evolved 2 slots: Propulsion x1, Utility x1 4995 | -9/Materials | Identified exit to Storage 4996 | -9/Materials | Identified exit to Mines 4996 | -9/Materials | Identified exit to Materials 4996 | -9/Materials | Identified Decoy Drone Bay 6429 | -9/Materials | Repaired Imp. Treads 6598 | -9/Materials | Discovered exit to Materials (range 10) 6735 | -9/Materials | Repaired Lgt. Treads 6962 | -9/Materials | Learned location of Zion (-7) 7016 | -9/Materials | Learned Materials emergency access door positions 7029 | -9/Materials | Learned Storage emergency access door positions 7032 | -9/Materials | Learned location of 1 exit from Storage 7451 | -9/Materials | Entered Mines 7452 | -9/Mines | A Derelict revealed a hidden shortcut to a safe place 7524 | -9/Mines | Met a Derelict shopkeep closing up shop 7546 | -9/Mines | Identified exit to Exiles 7553 | -9/Mines | Discovered exit to Materials (range 14) 7665 | -9/Mines | Joined a pair of Derelicts in attacking an 0b10 outpost 7940 | -9/Mines | Met a Derelict testing a Signal Generator 8564 | -9/Mines | Deemed a non-threat by the Exiles lab entrance 8651 | -9/Mines | Discovered exit to Materials (range 11) 8890 | -9/Mines | Received a Rocket Launcher from a helpful Derelict 9083 | -9/Mines | Entered Exiles 9083 | -9/Exiles | Accompanied by 1 ally 9112 | -9/Exiles | Discovered new exit (range 15) 9128 | -9/Exiles | Met 8R-AWN 9146 | -9/Exiles | Met EX-HEX 9209 | -9/Exiles | Met EX-DEC 9304 | -9/Exiles | Discovered new exit (range 14) 9420 | -9/Exiles | Met EX-BIN 9437 | -9/Exiles | Aligned with FarCom system 9438 | -9/Exiles | Given EX-Vault access code 9475 | -9/Exiles | Opened EX-Vault 9511 | -9/Exiles | Warned to stay clear of 0b10 Research branches 9956 | -9/Exiles | Found AWS/Thermal 10456 | -9/Exiles | Attacked by the Exiles 10612 | -9/Exiles | Core integrity fell below 50% 10676 | -9/Exiles | Lost 5 parts (1p1n2u1w) 10692 | -9/Exiles | Destroyed 8R-AWN 10702 | -9/Exiles | Found Prototype Device 10702 | -9/Exiles | Identified AS-neutralizer No. 17b 10745 | -9/Exiles | Entered Mines 10991 | -8/Mines | Self-destructed Last Messages --------------- 10748_ Acquired 71 matter. 10761_ Acquired Med. Armor Plating. 10773_ System corrupted: IFF burst signal emitted. 10788_ System corrupted: Component data lost. 10823_ System corrupted: Energy discharge (-33). 10828_ K-01 Serf collects debris. 10890_ RAEX0 B1#J|HTVUYTT 8Z%N 10913_ System corrupted: Matter fused (-5). 10953_ System corrupted: FCS attempts to trigger Imp. Light Cannon. 10953_ System corrupted: Imp. Light Cannon misfires. 10976_ System corrupted: Component data lost. 10983_ C-30 ARC bursts open, deploying its payload. 10983_ B-36 Bruiser unfolds itself. 10983_ G-47 Trooper unfolds itself. 10985_ System corrupted: Plasma Cannon failed to cycle. Map ----- +----------------------------------------------------+ | ?????????????????????????????????????????????????? | | ?????????????????????????????????????????????????? | | ?????????????????????????????????????????????????? | | ?????????????????????????????????????????????????? | | ?????????????????????????????????????????????????? | | ?????????????????????????????????????????????????? | | ?????????????????????????????????????????????????? | | ?????????????????????????????????????????????????? | | ????????????????????????????????####?????????????? | | ???????????????????????????????## ##????????????? | | ???????????????????????????????# #????????????? | | ???????????????????????????????# #????????????? | | ???????????????????????????????## ##????????????? | | ???????????????????????????????## #?????????????? | | ??????????????????????????????## ##????#####???? | | ?????????????????????????????## #???## ##??? | | ???????????????????#?????????# ##?## #??? | | ???????????????????# ????????# ### #??? | | ???????????????????# ????????## #???? | | ???????????????????# ?????????## ##??## | | ???????????????????# ??????????## #??## | | ???????????????????# ???????????#### #### | | ??????? ######### ##????????????## ## | | ??????? ] ####??????????# | | ??????? ##?????????## ## | | ???????# ##### @#?????????## #### | | ???????????????????# b#????????## ##?### | | ???????????????????## g ########## #???## | | ????????????????????## ## #????## | | ?????????????????????## ##?????## | | ??????????????????????#;% ######????#### | | ??????????????????????### ####????????## | | ????????????????????????#%g ##???????????# | | ???????????????????????# #????????????# | | ??????????????????????# #### #?????????????# | | ????????????????????? #???## #?????????????### | | ??????????????????? #?????# #???????????????## | | ?????????????????# #??????# #????????????????# | | ?????????????????#### ??????? #????????????????# | | ????????????????????#???????? #????????????????? | | ?????????????????????????????####????????????????? | | ?????????????????????????????????????????????????? | | ?????????????????????????????????????????????????? | | ?????????????????????????????????????????????????? | | ?????????????????????????????????????????????????? | | ?????????????????????????????????????????????????? | | ?????????????????????????????????????????????????? | | ?????????????????????????????????????????????????? | | ?????????????????????????????????????????????????? | | ?????????????????????????????????????????????????? | +----------------------------------------------------+ Best States ------------- Heat Dissipation 28 Energy Generation 14 Energy Capacity 280 Matter Stores 300 Matter Capacity 300 Sight Range 18 Terrain Scan Density 10 Armor Coverage 525 Evasion (%) 55 Recoil Reduction 3 Item Schematics ----------------- None Robot Schematics ------------------ None Fabricated ------------ Nothing Repaired ---------- Lgt. Treads | 61% | -10/Materials Imp. Treads | 15% | -9/Materials Lgt. Treads | 23% | -9/Materials Alien Tech Used ----------------- None Achievements -------------- None Challenges ------------ None Game ------ Seed SiegeMyomerChip Manual? 0 Play Time 00:43:30 Cumulative 172.8 hours Start 2025.08.12 @ 18:27:14 End 2025.08.12 @ 21:47:03 Sessions 3 Manual Loads 0 Difficulty Rogue Special Mode None Game No. 85 Rogue 85 Adventurer 0 Explorer 0 Win Type - Total 19 Types 9/1/5/1/0/1/1/1/0/0 Lore% 65 Gallery% 61 Achievement% 70 Wizard Run 0 Options --------- Layout 1 ASCII 0 Keyboard 0 Movement Arrows Keybinds 0 Fullscreen 2 Font 24/Tamsyn Map View 50x35 Zoom Use 0% Tactical HUD 1 Map Filters NONE Filters NONE Steam 1 RUN: e0b79d97-3d95-493f-b16e-58b488e5239a